bitfinex-derivatives/quotes_SOLF0:USTF0_20250901
["timestamp","ask_amount","ask_price","bid_price","bid_amount"]
[1756693783713,9.73037411,199.12,198.97,8.07]
[1756693783915,7.48,199.12,199.03,2.25037411]
[1756693784419,7.48,199.12,198.99,8.07]
[1756693784613,7.48,199.12,199.01,2.25037411]
[1756693785518,7.48,199.12,198.99,8.07]
[1756693785714,7.48,199.12,199.01,2.25037411]
[1756693786712,476.06,199.14,199.04,2.25037411]
[1756693787615,7.48,199.13,199.01,2.25037411]
[1756693788824,2.25037411,199.12,199.01,2.25037411]
[1756693789127,7.48,199.08,198.96,2.25037411]
[1756693789327,138.54,199.07,198.99,2.25037411]
[1756693789928,7.48,199.13,198.99,2.25037411]
[1756693790127,138.54,199.12,198.99,2.25037411]
[1756693790727,2.25037411,199.11,198.99,2.25037411]
[1756693790922,2.25037411,199.08,198.9,2.25037411]
[1756693791128,7.48,199.07,198.95,2.25037411]
[1756693791324,138.52,199.06,198.95,2.25037411]
[1756693794629,140.77037411,199.06,198.95,2.25037411]
[1756693795624,2.25037411,199.1,198.98,2.25037411]
[1756693795936,104.96,199.09,198.98,8.07]
[1756693796133,104.96,199.09,198.99,2.25037411]
[1756693797330,22.59,199.13,198.96,10.32037411]
[1756693797528,7.48,199.07,198.96,2.25037411]
[1756693798327,109.66,199.07,198.96,2.25037411]
[1756693799130,138.48,199.08,198.99,2.25037411]
[1756693799432,138.48,199.09,198.99,2.25037411]
[1756693800526,138.48,199.09,199.0,2.25037411]
[1756693800734,337.52,199.14,199.03,2.25037411]
[1756693801128,337.52,199.14,199.01,8.07]
[1756693801129,476.0,199.14,199.06,2.25037411]
[1756693801334,476.0,199.14,199.07,2.25037411]
[1756693801530,7.48,199.13,198.99,8.07]
[1756693801735,7.48,199.13,199.02,2.25037411]
[1756693801935,9.73037411,199.13,199.02,2.25037411]
[1756693802135,7.48,199.13,199.02,2.25037411]
[1756693802331,145.94,199.13,199.02,2.25037411]
[1756693802535,145.94,199.13,199.01,2.25037411]
[1756693802737,7.48,199.11,198.99,2.25037411]
[1756693803139,9.73037411,199.11,198.99,2.25037411]
[1756693803638,9.73037411,199.11,198.91,11.4]
[1756693803639,2.25037411,199.08,198.88,5.60378221]
[1756693803830,7.48,199.07,198.94,2.25037411]
[1756693804026,9.73037411,199.05,198.94,2.25037411]
[1756693804537,138.44,199.05,198.97,2.25037411]
[1756693805128,145.92,199.05,198.94,8.07]
[1756693805334,145.92,199.05,198.95,2.25037411]
[1756693805830,7.48,199.05,198.95,2.25037411]
[1756693806028,138.44,199.04,198.95,2.25037411]
[1756693806233,138.44,199.07,198.98,2.25037411]
[1756693806441,148.17037411,199.07,198.95,2.25037411]
[1756693806737,7.48,199.03,198.92,2.25037411]
[1756693807237,7.48,199.03,198.91,2.25037411]
[1756693810142,7.48,199.03,198.89,8.07]
[1756693810749,153.55,199.07,198.86,2.25037411]
[1756693810750,7.45,198.97,198.86,2.25037411]
[1756693810937,64.87,198.97,198.86,2.25037411]
[1756693811638,2.25037411,198.98,198.86,2.25037411]
[1756693811843,69.52,198.98,198.89,2.25037411]
[1756693813242,7.45,198.97,198.86,2.25037411]
[1756693813640,2.25037411,198.95,198.8,7.51]
[1756693813942,9.71880519,198.94,198.8,7.51]
[1756693814239,7.45,198.94,198.82,2.25037411]
[1756693814541,2.26650321,198.93,198.8,9.76037411]
[1756693814839,130.88,198.94,198.86,2.25037411]
[1756693815541,130.88,198.94,198.83,9.76037411]
[1756693816339,7.45,198.91,198.76,109.22395981]
[1756693816539,7.45,198.88,198.77,2.25037411]
[1756693816745,7.45,198.88,198.7,340.01037411]
[1756693816746,7.45,198.82,198.69,7.51]
[1756693817041,2.25037411,198.81,198.69,9.76037411]
[1756693817434,2.25037411,198.81,198.68,2.25037411]
[1756693817640,2.25037411,198.9,198.66,2.25037411]
[1756693817641,47.97,198.8,198.66,2.25037411]
[1756693817943,7.45,198.8,198.69,2.25037411]
[1756693819836,7.45,198.8,198.67,2.25037411]
[1756693820037,11.06116698,198.8,198.64,11.12116698]
[1756693820642,11.06116698,198.8,198.64,7.51]
[1756693820843,3.61116698,198.8,198.58,7.51]
[1756693821043,3.61116698,198.77,198.6,3.61116698]
[1756693821244,7.45,198.76,198.6,3.61116698]
[1756693821645,7.45,198.76,198.58,7.51]
[1756693821844,7.45,198.76,198.6,3.61116698]
[1756693822147,31.69,198.76,198.61,7.51]
[1756693823854,7.45,198.74,198.59,3.61116698]
[1756693824044,7.45,198.74,198.57,345.31]
[1756693824345,7.45,198.74,198.62,3.61116698]
[1756693824946,7.45,198.79,198.63,7.51]
[1756693825347,106.08,198.78,198.63,7.51]
[1756693826555,3.61116698,198.76,198.57,345.31]
[1756693826843,7.45,198.75,198.58,3.61116698]
[1756693828143,36.46,198.74,198.61,11.12116698]
[1756693828352,36.46,198.74,198.61,7.51]
[1756693828548,46.92,198.74,198.61,11.12116698]
[1756693829551,7.45,198.75,198.61,11.12116698]
[1756693830954,7.45,198.75,198.61,7.51]
[1756693831245,7.45,198.75,198.62,3.61116698]
[1756693831644,21.81,198.75,198.62,3.61116698]
[1756693833650,14.36,198.75,198.57,345.31]
[1756693833857,7.45,198.74,198.58,3.61116698]
[1756693834154,7.45,198.72,198.58,3.61116698]
[1756693834746,7.45,198.72,198.52,0.8762322]
[1756693834747,7.45,198.72,198.55,3.61116698]
[1756693834955,7.45,198.69,198.53,7.51]
[1756693835444,3.61116698,198.67,198.53,7.51]
[1756693835649,7.45,198.65,198.51,3.61116698]
[1756693837554,7.45,198.65,198.5,3.61116698]
[1756693837959,7.45,198.65,198.49,7.51]
[1756693838160,7.45,198.65,198.5,3.61116698]
[1756693838559,11.06116698,198.65,198.49,7.51]
[1756693839058,11.06116698,198.65,198.46,3.61116698]
[1756693839655,7.63,198.63,198.46,3.61116698]
[1756693840559,7.63,198.61,198.45,7.51]
[1756693840759,3.61116698,198.62,198.45,11.12116698]
[1756693840958,7.63,198.61,198.45,11.12116698]
[1756693842156,7.63,198.61,198.49,7.51]
[1756693843859,7.63,198.67,198.52,7.51]
[1756693844057,126.64,198.66,198.54,3.61116698]
[1756693844263,126.64,198.66,198.53,3.61116698]
[1756693844862,126.64,198.66,198.52,7.51]
[1756693845164,126.64,198.66,198.53,3.61116698]
[1756693846264,345.81,198.72,198.59,3.61116698]
[1756693846466,484.11,198.72,198.59,3.61116698]
[1756693847461,484.11,198.72,198.57,7.51]
[1756693847661,484.11,198.72,198.58,3.61116698]
[1756693847857,484.11,198.72,198.57,7.51]
[1756693848564,487.72116698,198.72,198.57,7.51]
[1756693849266,138.26,198.71,198.59,3.61116698]
[1756693850058,138.26,198.71,198.61,2.25817364]
[1756693850471,138.26,198.71,198.57,7.51]
[1756693850673,7.63,198.7,198.52,7.51]
[1756693850965,7.63,198.66,198.53,2.25817364]
[1756693851167,7.63,198.63,198.52,2.25817364]
[1756693851368,138.24,198.62,198.52,2.25817364]
[1756693852162,2.25817364,198.61,198.47,338.4]
[1756693852366,7.63,198.6,198.46,7.51]
[1756693852575,2.25817364,198.58,198.46,9.76817364]
[1756693852872,2.25817364,198.58,198.46,2.25817364]
[1756693853672,7.63,198.57,198.41,7.51]
[1756693853871,2.25817364,198.55,198.44,2.25817364]
[1756693854170,49.38,198.54,198.41,11.12966524]
[1756693854779,57.01,198.54,198.41,7.51]
[1756693855077,57.01,198.54,198.41,11.12966524]
[1756693855873,49.38,198.54,198.41,11.12966524]
[1756693858176,3.61966524,198.6,198.41,3.61966524]
[1756693858377,11.24966524,198.6,198.44,3.61966524]
[1756693858574,15.64,198.59,198.45,7.51]
[1756693858975,7.63,198.6,198.47,3.61966524]
[1756693859183,7.63,198.6,198.48,7.51]
[1756693859381,13.98,198.62,198.48,7.51]
[1756693860180,7.63,198.65,198.5,3.61966524]
[1756693860481,7.63,198.65,198.51,7.51]
[1756693860680,7.63,198.65,198.52,3.61966524]
[1756693861276,106.64,198.66,198.55,3.61966524]
[1756693861473,106.64,198.66,198.55,11.12966524]
[1756693862478,106.64,198.66,198.48,3.61966524]
[1756693862684,22.74,198.5,198.33,5.60378221]
[1756693862882,143.74906686,198.49,198.3,7.51]
[1756693863079,3.61966524,198.44,198.3,7.51]
[1756693863878,3.61966524,198.46,198.3,7.51]
[1756693864783,3.61966524,198.48,198.32,7.51]
[1756693864984,3.61966524,198.48,198.34,7.51]
[1756693865478,3.61966524,198.48,198.34,51.91]
[1756693865674,138.12,198.49,198.34,51.91]
[1756693866476,138.12,198.49,198.34,65.01]
[1756693866980,138.12,198.49,198.34,7.51]
[1756693867383,138.12,198.49,198.34,22.75]
[1756693867785,138.12,198.49,198.34,7.51]
[1756693867986,138.12,198.49,198.35,3.61966524]
[1756693870078,11.74966524,198.48,198.3,0.87723721]
[1756693870283,8.13,198.37,198.21,8.14]
[1756693871188,8.13,198.37,198.19,3.61966524]
[1756693871387,8.13,198.37,198.19,12.41966524]
[1756693871685,8.13,198.37,198.19,3.61966524]
[1756693871881,8.13,198.37,198.18,11.75966524]
[1756693872083,3.61966524,198.34,198.18,8.14]
[1756693872684,3.61966524,198.34,198.18,11.75966524]
[1756693873286,8.13,198.33,198.18,11.75966524]
[1756693874683,8.13,198.38,198.19,8.14]
[1756693874883,8.13,198.38,198.22,8.14]
[1756693875190,3.61966524,198.41,198.22,8.14]
[1756693875582,3.61966524,198.41,198.24,3.61966524]
[1756693875784,53.5,198.42,198.17,3.61966524]
[1756693875785,11.74966524,198.35,198.17,3.61966524]
[1756693875984,3.61966524,198.32,198.17,11.75966524]
[1756693876390,3.61966524,198.32,198.17,8.14]
[1756693877581,8.13,198.33,198.17,8.14]
[1756693877785,3.61966524,198.32,198.17,8.14]
[1756693881185,8.13,198.33,198.13,12.71966524]
[1756693881186,3.61966524,198.29,198.13,3.61966524]
[1756693881388,3.61966524,198.29,198.07,8.14]
[1756693881587,3.61966524,198.24,198.07,8.14]
[1756693881792,11.74966524,198.24,198.07,8.14]
[1756693883387,15.11,198.32,198.03,44.87841078]
[1756693883388,8.13,198.2,198.03,0.87841078]
[1756693883589,8.13,198.2,198.0,8.14]
[1756693883590,3.61966524,198.18,198.01,3.61966524]
[1756693883794,16.57,198.2,198.0,8.14]
[1756693883795,3.61966524,198.15,198.0,8.14]
[1756693884291,11.74966524,198.17,198.0,8.14]
[1756693886894,11.74966524,198.17,198.02,3.61966524]
[1756693889001,11.74966524,198.17,198.0,8.14]
[1756693890103,8.13,198.17,198.05,3.61966524]
[1756693890292,8.13,198.22,198.05,3.61966524]
[1756693890601,8.13,198.22,198.06,8.14]
[1756693891303,8.13,198.22,198.06,11.75966524]
[1756693891501,8.13,198.22,198.09,3.61966524]
[1756693893198,338.9,198.24,198.12,3.61966524]
[1756693893500,8.13,198.27,198.17,3.61966524]
[1756693893903,139.36,198.31,198.17,3.61966524]
[1756693894305,139.36,198.31,198.17,11.75966524]
[1756693894715,139.36,198.31,198.2,3.61966524]
[1756693894907,139.36,198.31,198.23,3.61966524]
[1756693895106,347.25,198.37,198.23,3.61966524]
[1756693895506,339.12,198.37,198.23,3.61966524]
[1756693895906,339.12,198.37,198.26,3.61966524]
[1756693897406,147.27,198.42,198.26,3.61966524]
[1756693897611,147.27,198.42,198.29,3.61966524]
[1756693898206,147.27,198.42,198.24,13.86]
[1756693898506,147.27,198.42,198.27,11.13966524]
[1756693898715,139.14,198.42,198.3,3.61966524]
[1756693899204,139.14,198.42,198.33,3.61966524]
[1756693899601,7.55,198.41,198.23,7.52]
[1756693899801,7.55,198.41,198.25,3.61966524]
[1756693900009,7.55,198.38,198.23,7.52]
[1756693900412,7.55,198.36,198.21,3.61966524]
[1756693900607,7.55,198.36,198.17,46.5]
[1756693900816,7.55,198.36,198.2,3.61966524]
[1756693901808,7.55,198.36,198.2,11.13966524]
[1756693902013,7.55,198.36,198.23,3.61966524]
[1756693902207,3.61966524,198.39,198.24,7.52]
[1756693902911,3.61966524,198.47,198.29,11.13966524]
[1756693903213,7.55,198.48,198.35,3.61966524]
[1756693903815,139.46,198.5,198.38,3.61966524]
[1756693904314,7.55,198.48,198.32,11.13966524]
[1756693905218,7.55,198.48,198.35,3.61966524]
[1756693905412,7.55,198.48,198.34,3.61966524]
[1756693905611,7.55,198.48,198.32,7.52]
[1756693905813,7.55,198.46,198.32,3.61966524]
[1756693906517,7.55,198.46,198.29,3.61966524]
[1756693906914,3.61966524,198.44,198.27,11.13966524]
[1756693907215,147.05,198.43,198.27,3.61966524]
[1756693907618,7.55,198.4,198.24,3.61966524]
[1756693908018,7.55,198.4,198.23,13.41140193]
[1756693910717,5.89140193,198.41,198.23,13.41140193]
[1756693910913,10.90275645,198.4,198.19,5.89140193]
[1756693911120,7.55,198.38,198.19,5.89140193]
[1756693911317,7.55,198.36,198.19,5.89140193]
[1756693911512,7.55,198.36,198.18,7.52]
[1756693911715,7.55,198.34,198.15,5.89140193]
[1756693911923,7.55,198.32,198.15,5.89140193]
[1756693912616,7.55,198.32,198.14,7.52]
[1756693913722,7.55,198.32,198.1,344.81140193]
[1756693913917,7.55,198.3,198.1,352.33140193]
[1756693914119,7.55,198.32,198.1,352.33140193]
[1756693914325,3.35722824,198.31,198.1,352.33140193]
[1756693914526,7.55,198.29,198.1,352.33140193]
[1756693914825,138.8,198.28,198.1,344.81140193]
[1756693915023,7.55,198.29,198.11,7.52]
[1756693915229,146.35,198.29,198.11,7.52]
[1756693915919,7.55,198.29,198.12,7.52]
[1756693916121,146.31,198.29,198.16,7.52]
[1756693916527,13.44140193,198.34,198.16,7.52]
[1756693916824,142.0983318,198.33,198.16,7.52]
[1756693917021,138.74,198.33,198.16,7.52]
[1756693917226,138.74,198.33,198.19,5.89140193]
[1756693917424,7.55,198.34,198.19,5.89140193]
[1756693917625,146.23,198.34,198.2,7.52]
[1756693917821,146.23,198.34,198.19,5.89140193]
[1756693918022,146.23,198.34,198.19,13.41140193]
[1756693918523,338.94,198.35,198.24,7.52]
[1756693920219,7.55,198.39,198.24,7.52]
[1756693920427,7.55,198.39,198.24,13.41140193]
[1756693920725,92.57,198.44,198.28,13.41140193]
[1756693921123,92.57,198.44,198.28,7.52]
[1756693921327,92.57,198.44,198.26,5.89140193]
[1756693921531,3.36092696,198.43,198.26,5.89140193]
[1756693921833,7.55,198.43,198.26,5.89140193]
[1756693923534,134.07,198.43,198.27,7.52]
[1756693923736,134.07,198.43,198.3,5.89140193]
[1756693924136,126.52,198.43,198.31,7.52]
[1756693924339,134.07,198.43,198.3,5.89140193]
[1756693925633,126.52,198.43,198.34,5.89140193]
[1756693926033,126.52,198.43,198.34,13.41140193]
[1756693926229,126.52,198.43,198.31,5.89140193]
[1756693927035,477.52,198.48,198.35,5.89140193]
[1756693928029,477.52,198.48,198.36,3.62176242]
[1756693928929,7.89,198.47,198.33,3.62176242]
[1756693929136,7.89,198.45,198.29,3.62176242]
[1756693929830,7.89,198.42,198.27,3.62176242]
[1756693930131,11.51176242,198.4,198.24,3.62176242]
[1756693930834,11.51176242,198.4,198.23,3.62176242]
[1756693931336,11.51176242,198.4,198.22,3.62176242]
[1756693932230,7.89,198.4,198.2,5.89328886]
[1756693932432,93.24,198.39,198.24,5.89328886]
[1756693932829,93.24,198.39,198.25,8.08]
[1756693933635,138.52,198.39,198.25,8.08]
[1756693933940,138.52,198.41,198.28,5.89328886]
[1756693934328,7.89,198.43,198.28,13.97328886]
[1756693938843,7.89,198.43,198.28,8.08]
[1756693939039,7.89,198.43,198.28,13.97328886]
[1756693939247,3.38430547,198.42,198.28,13.97328886]
[1756693939540,7.89,198.43,198.28,13.97328886]
[1756693939844,3.3840533,198.42,198.28,13.97328886]
[1756693940039,7.89,198.43,198.23,8.08]
[1756693940244,7.89,198.43,198.24,5.89328886]
[1756693940245,7.89,198.41,198.24,5.89328886]
[1756693940447,5.63195168,198.4,198.24,5.89328886]
[1756693940652,13.52133726,198.39,198.2,5.89328886]
[1756693940843,7.89,198.37,198.21,8.08]
[1756693941041,115.40188776,198.36,198.21,8.08]
[1756693941241,112.02,198.36,198.21,8.08]
[1756693942150,112.02,198.36,198.25,8.08]
[1756693942545,7.89,198.42,198.25,8.08]
[1756693942747,7.89,198.42,198.29,8.08]
[1756693944149,100.36,198.45,198.29,8.08]
[1756693944350,7.89,198.43,198.29,8.08]
[1756693946351,346.87,198.48,198.32,5.89328886]
[1756693946551,144.09479522,198.47,198.33,5.89328886]
[1756693946751,3.38407667,198.46,198.33,5.89328886]
[1756693947149,346.87,198.48,198.33,5.89328886]
[1756693947352,3.38418635,198.47,198.33,5.89328886]
[1756693947547,485.31,198.48,198.33,5.89328886]
[1756693947746,3.38454449,198.47,198.33,5.89328886]
[1756693947943,485.31,198.48,198.33,5.89328886]
[1756693948152,3.38525195,198.47,198.33,5.89328886]
[1756693948351,485.31,198.48,198.33,5.89328886]
[1756693948652,3.38589774,198.47,198.33,5.89328886]
[1756693948847,485.31,198.48,198.33,5.89328886]
[1756693949052,3.38590055,198.47,198.33,5.89328886]
[1756693949247,485.31,198.48,198.33,5.89328886]
[1756693949547,3.38734953,198.47,198.33,5.89328886]
[1756693949748,346.87,198.48,198.33,5.89328886]
[1756693950053,3.3875885,198.47,198.33,5.89328886]
[1756693950255,338.98,198.48,198.34,8.08]
[1756693953552,338.98,198.48,198.38,8.08]
[1756693953955,338.98,198.48,198.39,3.62036418]
[1756693954753,346.87,198.48,198.32,8.08]
[1756693954957,346.87,198.48,198.33,3.62036418]
[1756693955859,7.89,198.45,198.3,3.62036418]
[1756693956061,138.36,198.44,198.3,3.62036418]
[1756693956265,7.89,198.43,198.3,3.62036418]
[1756693957959,11.51036418,198.43,198.27,8.08]
[1756693958156,3.62036418,198.4,198.26,3.62036418]
[1756693958363,7.43,198.39,198.23,3.62036418]
[1756693958559,138.34,198.38,198.23,3.62036418]
[1756693961762,7.43,198.37,198.23,3.62036418]
[1756693961962,7.43,198.37,198.22,7.37]
[1756693962163,7.43,198.35,198.2,3.62036418]
[1756693962363,7.43,198.33,198.18,346.17]
[1756693962863,3.39774236,198.32,198.18,346.17]
[1756693963069,51.3,198.31,198.18,346.17]
[1756693963762,7.43,198.33,198.2,3.62036418]
[1756693964265,7.43,198.33,198.18,346.17]
[1756693964972,3.39631495,198.32,198.2,3.62036418]
[1756693965173,7.43,198.33,198.2,3.62036418]
[1756693965464,7.43,198.38,198.26,3.62036418]
[1756693965669,3.39556893,198.37,198.26,3.62036418]
[1756693965971,7.43,198.38,198.26,3.62036418]
[1756693967265,3.62036418,198.41,198.26,3.62036418]
[1756693967569,3.39372367,198.4,198.26,3.62036418]
[1756693967764,109.32,198.41,198.26,3.62036418]
[1756693968369,10.82370158,198.4,198.24,3.62036418]
[1756693968566,7.43,198.38,198.24,3.62036418]
[1756693968765,5.64862129,198.37,198.19,7.37]
[1756693968962,7.43,198.35,198.22,3.62036418]
[1756693969268,11.05036418,198.35,198.19,10.99036418]
[1756693969465,3.62036418,198.35,198.19,10.99036418]
[1756693969665,13.07691206,198.34,198.19,10.99036418]
[1756693969964,40.33217862,198.33,198.19,10.99036418]
[1756693970165,14.43841938,198.32,198.16,3.62036418]
[1756693970469,11.05036418,198.32,198.16,3.62036418]
[1756693970766,7.43,198.32,198.17,7.37]
[1756693970965,7.43,198.32,198.19,3.62036418]
[1756693971765,7.43,198.32,198.17,7.37]
[1756693972069,7.43,198.32,198.18,3.62036418]
[1756693972566,7.43,198.28,198.13,3.62036418]
[1756693974970,7.43,198.28,198.12,7.37]
[1756693975566,113.8,198.27,198.14,3.62036418]
[1756693975772,7.43,198.28,198.14,3.62036418]
[1756693975973,145.67,198.28,198.14,3.62036418]
[1756693976378,7.43,198.28,198.14,3.62036418]
[1756693976770,114.15,198.28,198.14,3.62036418]
[1756693977171,7.43,198.27,198.11,3.62036418]
[1756693977365,7.43,198.25,198.11,3.62036418]
[1756693977874,7.43,198.11,197.94,7.37]
[1756693978373,6.5,198.1,197.96,3.62036418]
[1756693978568,6.5,198.1,197.94,7.37]
[1756693978772,7.43,198.11,197.94,7.37]
[1756693978975,96.78,198.1,197.94,7.37]
[1756693979474,138.24,198.09,197.94,7.37]
[1756693979674,7.43,198.08,197.94,7.37]
[1756693979873,138.24,198.07,197.94,7.37]
[1756693980275,145.67,198.08,197.94,7.37]
[1756693980575,7.43,198.08,197.94,7.37]
[1756693981274,7.43,198.08,197.92,5.90922859]
[1756693982076,126.22,198.07,197.93,7.37]
[1756693983278,126.22,198.07,197.93,13.27922859]
[1756693983471,7.43,198.08,197.93,13.27922859]
[1756693983776,339.02,198.12,197.94,7.37]
[1756693983980,7.43,198.1,197.94,7.37]
[1756693984380,440.56,198.12,197.98,7.37]
[1756693984674,339.02,198.12,197.98,7.37]
[1756693985680,339.02,198.12,198.01,5.90922859]
[1756693985876,339.02,198.12,198.02,7.37]
[1756693986277,7.43,198.2,198.02,7.37]
[1756693986477,138.28,198.19,198.02,7.37]
[1756693987380,7.43,198.18,197.97,7.37]
[1756693987676,7.43,198.18,197.98,5.90922859]
[1756693990282,8.1,198.16,197.98,5.90922859]
[1756693990670,8.1,198.16,197.99,7.94]
[1756693990870,8.1,198.16,198.02,5.90922859]
[1756693991073,8.1,198.16,198.03,7.94]
[1756693991974,8.1,198.23,198.03,7.94]
[1756693992179,138.24,198.22,198.03,7.94]
[1756693992383,8.1,198.29,198.1,5.90922859]
[1756693992581,8.1,198.29,198.04,9.68]
[1756693992582,138.24,198.28,198.14,5.90922859]
[1756693992782,8.1,198.29,198.14,5.90922859]
[1756693992978,8.1,198.29,198.18,5.90922859]
[1756693993386,138.24,198.31,198.18,5.90922859]
[1756693993580,8.1,198.3,198.06,7.94]
[1756693993884,8.1,198.3,198.08,5.90922859]
[1756693995581,8.1,198.3,198.09,7.94]
[1756693996477,8.1,198.26,197.98,7.94]
[1756693996683,5.90922859,198.27,198.04,13.84922859]
[1756693996987,8.1,198.22,198.01,5.90922859]
[1756693997186,5.90922859,198.19,198.01,5.90922859]
[1756693997389,8.1,198.2,198.01,5.90922859]
[1756693997882,8.1,198.2,197.97,339.28]
[1756693997883,8.1,198.2,198.06,7.94]
[1756693998087,19.84,198.2,198.06,7.94]
[1756693998282,11.74,198.2,198.06,7.94]
[1756693998488,12.72,198.22,198.06,7.94]
[1756693998784,12.72,198.22,198.09,13.84922859]
[1756694000187,12.72,198.22,198.09,7.94]
[1756694000484,8.1,198.33,198.14,5.90922859]
[1756694000681,146.26,198.33,198.15,7.94]
[1756694001279,146.26,198.33,198.15,13.84922859]
[1756694001494,138.16,198.33,198.15,13.84922859]
[1756694001690,11.48948447,198.32,198.15,13.84922859]
[1756694001885,8.1,198.32,198.15,13.84922859]
[1756694002191,11.72866332,198.32,198.15,11.56866332]
[1756694002387,3.38946654,198.31,198.15,11.56866332]
[1756694002692,3.38946654,198.3,198.15,11.56866332]
[1756694002990,11.72866332,198.32,198.15,11.56866332]
[1756694003197,3.38872039,198.31,198.15,11.56866332]
[1756694003393,3.38872039,198.3,198.15,11.56866332]
[1756694003587,11.72866332,198.32,198.15,11.56866332]
[1756694003886,3.38903531,198.31,198.15,11.56866332]
[1756694004086,4.26713579,198.3,198.15,11.56866332]
[1756694004391,3.3894746,198.29,198.15,11.56866332]
[1756694004591,0.87810048,198.3,198.15,11.56866332]
[1756694004885,3.38935341,198.29,198.15,11.56866332]
[1756694005090,0.87810048,198.3,198.18,3.62866332]
[1756694006093,8.1,198.29,198.14,3.62866332]
[1756694006391,3.39090638,198.28,198.12,3.62866332]
[1756694006588,133.8,198.27,198.12,3.62866332]
[1756694007490,30.2502897,198.26,197.97,7.94]
[1756694007693,3.39162638,198.25,198.07,3.62866332]
[1756694008297,3.39162638,198.25,198.1,3.62866332]
[1756694008495,3.39162638,198.25,198.1,11.56866332]
[1756694008696,55.06,198.26,198.13,3.62866332]
[1756694009492,8.1,198.26,198.13,3.62866332]
[1756694009796,101.57810048,198.3,198.16,3.62866332]
[1756694011589,101.57810048,198.3,198.13,7.94]
[1756694011590,101.57810048,198.3,198.14,3.62866332]
[1756694012190,3.39908092,198.29,198.14,3.62866332]
[1756694012396,101.57810048,198.3,198.14,3.62866332]
[1756694012696,101.57810048,198.3,198.17,3.62866332]
[1756694013397,3.62866332,198.24,198.02,7.94]
[1756694013604,8.1,198.23,198.08,3.62866332]
[1756694013796,8.1,198.23,198.07,3.62866332]
[1756694014602,8.1,198.23,198.07,11.56866332]
[1756694015201,8.1,198.23,198.1,3.62866332]
[1756694018507,7.51,198.27,198.13,3.62866332]
[1756694018909,26.96,198.28,198.14,8.04]
[1756694019215,16.96,198.28,198.16,3.62866332]
[1756694019613,0.87810048,198.3,198.16,3.62866332]
[1756694019813,3.40346022,198.29,198.16,3.62866332]
[1756694020015,111.23810048,198.3,198.16,3.62866332]
[1756694020214,0.87810048,198.3,198.16,3.62866332]
[1756694020514,0.87810048,198.3,198.19,3.62866332]
[1756694021617,0.87810048,198.3,198.22,3.62866332]
[1756694021812,346.79,198.35,198.22,3.62866332]
[1756694022016,347.66791218,198.35,198.22,3.62866332]
[1756694022514,347.66791218,198.35,198.25,3.62866332]
[1756694022913,340.15791218,198.35,198.25,3.62866332]
[1756694023218,339.28,198.35,198.25,3.62866332]
[1756694026918,339.28,198.35,198.24,3.62866332]
[1756694027214,339.28,198.35,198.2,14.48]
[1756694027215,7.51,198.4,198.27,3.62866332]
[1756694027518,145.35,198.4,198.27,3.62866332]
[1756694027714,145.35,198.4,198.3,3.62866332]
[1756694028419,137.84,198.4,198.3,3.62866332]
[1756694029218,137.84,198.4,198.24,3.62866332]
[1756694029219,137.84,198.4,198.33,3.62866332]
[1756694029625,7.51,198.44,198.33,3.62866332]
[1756694030115,7.51,198.44,198.25,8.04]
[1756694030320,3.40338505,198.43,198.28,3.62866332]
[1756694030619,7.51,198.44,198.28,3.62866332]